fUSD/lending_fUSD_20250220
["ID","MTS","AMOUNT","RATE_DAILY","PERIOD"]
[353780399,1740042647236,-508.91823563,0.00011844,2]
[353780400,1740042647246,-500.0,0.00011844,2]
[353780401,1740042647256,-500.0,0.00011844,2]
[353780402,1740042647266,-500.0,0.00011844,2]
[353780403,1740042647275,-602.43120992,0.00011844,2]
[353780404,1740042647284,-500.0,0.00011844,2]
[353780405,1740042647294,-500.0,0.00011844,2]
[353780406,1740042647303,-500.0,0.00011844,2]
[353780407,1740042647313,-639.79906295,0.00011844,2]
[353780408,1740042647322,-513.32516361,0.00011844,2]
[353780409,1740042647331,-504.89141877,0.00011844,2]
[353780410,1740042647341,-500.0,0.00011844,2]
[353780411,1740042647350,-520.74732042,0.00011844,2]
[353780412,1740042647359,-368.08151047,0.00011844,2]
[353780413,1740042647369,-500.0,0.00011844,2]
[353780414,1740042647378,-500.0,0.00011844,2]
[353780415,1740042647387,-500.0,0.00011844,2]
[353780416,1740042647396,-326.95432127,0.00011844,2]
[353780417,1740042647406,-500.0,0.00011844,2]
[353780418,1740042647416,-500.0,0.00011844,2]
[353780419,1740042647426,-233.78251144,0.00011844,2]
[353780420,1740042647438,-612.59864761,0.00011844,2]
[353780421,1740042647447,-500.0,0.00011844,2]
[353780422,1740042647455,-500.0,0.00011844,2]
[353780423,1740042647465,-500.0,0.00011844,2]
[353780424,1740042647476,-437.88223484,0.00011844,2]
[353780425,1740042647485,-411.54543229,0.00011844,2]
[353780426,1740042647494,-200.0888761,0.00011844,2]
[353780427,1740042647503,-500.0,0.00011844,2]
[353780428,1740042647513,-371.37737784,0.00011844,2]
[353780429,1740042647523,-406.65994412,0.00011844,2]
[353780430,1740042647532,-500.0,0.00011844,2]
[353780431,1740042647541,-500.0,0.00011844,2]
[353780432,1740042647551,-500.0,0.00011844,2]
[353780433,1740042647560,-343.01935491,0.00011844,2]
[353780434,1740042647570,-500.0,0.00011844,2]
[353780435,1740042647579,-500.0,0.00011844,2]
[353780436,1740042647589,-500.0,0.00011844,2]
[353780437,1740042647599,-500.0,0.00011844,2]
[353780438,1740042647608,-500.0,0.00011844,2]
[353780439,1740042647618,-649.41017248,0.00011844,2]
[353780440,1740042647628,-500.0,0.00011844,2]
[353780441,1740042647637,-500.92945583,0.00011844,2]
[353780442,1740042647647,-273.46842987,0.00011844,2]
[353780443,1740042647657,-558.46051929,0.00011844,2]
[353780444,1740042647667,-500.0,0.00011844,2]
[353780445,1740042647677,-500.0,0.00011844,2]
[353780446,1740042647687,-500.0,0.00011844,2]
[353780447,1740042647696,-500.0,0.00011844,2]
[353780448,1740042647706,-500.0,0.00011844,2]
[353780449,1740042647715,-500.0,0.00011844,2]
[353780450,1740042647725,-500.0,0.00011844,2]
[353780451,1740042647735,-251.74849844,0.00011844,2]
[353780452,1740042647744,-500.0,0.00011844,2]
[353780453,1740042647754,-500.0,0.00011844,2]
[353780454,1740042647763,-500.0,0.00011844,2]
[353780455,1740042647778,-500.0,0.00011844,2]
[353780456,1740042647787,-500.0,0.00011844,2]
[353780457,1740042647797,-500.0,0.00011844,2]
[353780458,1740042647806,-500.0,0.00011844,2]
[353780459,1740042647816,-500.0,0.00011844,2]
[353780460,1740042647826,-500.0,0.00011844,2]
[353780461,1740042647835,-500.0,0.00011844,2]
[353780462,1740042647844,-500.0,0.00011844,2]
[353780463,1740042647853,-500.0,0.00011844,2]
[353780464,1740042647862,-500.0,0.00011844,2]
[353780465,1740042647871,-500.0,0.00011844,2]
[353780466,1740042647881,-500.0,0.00011844,2]
[353780467,1740042647890,-574.87,0.00011844,2]
[353780468,1740042647899,-741.83,0.00011844,2]
[353780469,1740042647908,-30213.46711438,0.00011856,2]
[353780470,1740042647918,-157.77123,0.00011862,2]
[353780471,1740042647928,-269.4238391,0.00011881,2]
[353780472,1740042647937,-500.0,0.00011881,2]
[353780473,1740042647946,-170.68211938,0.00011881,2]
[353780474,1740042647955,-500.0,0.00011881,2]
[353780475,1740042647964,-500.0,0.00011881,2]
[353780476,1740042647976,-1000.0,0.000119,2]
[353780477,1740042647986,-301.88,0.000119,2]
[353780478,1740042647996,-440.27,0.000119,2]
[353780479,1740042648006,-776.07,0.000119,2]
[353780480,1740042648016,-986.16,0.000119,2]
[353780481,1740042648025,-1200.0,0.000119,4]
[353780482,1740042648035,-296.93887114,0.000119,2]
[353780483,1740042648046,-200.0,0.00011918,2]
[353780484,1740042648057,-500.0,0.00011926,2]
[353780485,1740042648068,-500.0,0.00011926,2]
[353780486,1740042648078,-500.0,0.00011926,2]
[353780487,1740042648089,-399.35,0.00011926,2]
[353780488,1740042648099,-500.0,0.00011926,2]
[353780489,1740042648109,-500.0,0.00011926,2]
[353780490,1740042648120,-365.00511364,0.00011926,2]
[353780491,1740042648131,-500.0,0.00011926,2]
[353780492,1740042648141,-500.0,0.00011926,2]
[353780493,1740042648151,-500.0,0.00011926,2]
[353780494,1740042648160,-500.0,0.00011926,2]
[353780495,1740042648170,-500.0,0.00011926,2]
[353780496,1740042648181,-500.0,0.00011926,2]
[353780497,1740042648191,-500.0,0.00011926,2]
[353780498,1740042648202,-500.0,0.00011926,2]
[353780499,1740042648213,-500.0,0.00011926,2]
[353780500,1740042648223,-500.0,0.00011926,2]
[353780501,1740042648233,-500.0,0.00011926,2]
[353780502,1740042648243,-407.78773999,0.00011926,2]
[353780503,1740042648255,-500.0,0.00011926,2]
[353780504,1740042648265,-571.53841312,0.00011926,2]
[353780505,1740042648275,-500.0,0.00011926,2]
[353780506,1740042648286,-500.0,0.00011926,2]
[353780507,1740042648296,-516.27641879,0.00011926,2]
[353780508,1740042648306,-446.58251336,0.00011926,2]
[353780509,1740042648319,-500.0,0.00011926,2]
[353780510,1740042648329,-500.0,0.00011926,2]
[353780511,1740042648340,-500.0,0.00011926,2]
[353780512,1740042648350,-500.0,0.00011926,2]
[353780513,1740042648361,-500.0,0.00011926,2]
[353780514,1740042648371,-500.0,0.00011926,2]
[353780515,1740042648382,-374.67830593,0.00011926,2]
[353780516,1740042648392,-500.0,0.00011926,2]
[353780517,1740042648402,-500.0,0.00011926,2]
[353780518,1740042648412,-500.0,0.00011926,2]
[353780519,1740042648422,-500.0,0.00011926,2]
[353780520,1740042648432,-500.0,0.00011926,2]
[353780521,1740042648440,-500.0,0.00011926,2]
[353780522,1740042648448,-500.0,0.00011926,2]
[353780523,1740042648456,-500.0,0.00011926,2]
[353780524,1740042648467,-500.0,0.00011926,2]
[353780525,1740042648477,-500.0,0.00011926,2]
[353780526,1740042648487,-500.0,0.00011926,2]
[353780527,1740042648497,-500.0,0.00011926,2]
[353780528,1740042648508,-500.0,0.00011926,2]
[353780529,1740042648518,-500.0,0.00011926,2]
[353780530,1740042648528,-500.0,0.00011926,2]
[353780531,1740042648538,-500.0,0.00011926,2]
[353780532,1740042648548,-643.32522672,0.00011926,2]
[353780533,1740042648558,-500.0,0.00011926,2]
[353780534,1740042648569,-500.0,0.00011926,2]
[353780535,1740042648579,-500.0,0.00011926,2]
[353780536,1740042648590,-500.0,0.00011926,2]
[353780537,1740042648600,-500.0,0.00011926,2]
[353780538,1740042648610,-156.89,0.00011926,2]
[353780539,1740042648620,-500.0,0.00011926,2]
[353780540,1740042648630,-500.0,0.00011926,2]
[353780541,1740042648642,-500.0,0.00011926,2]
[353780542,1740042648654,-500.0,0.00011926,2]
[353780543,1740042648664,-500.0,0.00011926,2]
[353780544,1740042648674,-500.0,0.00011926,2]
[353780545,1740042648685,-500.0,0.00011926,2]
[353780546,1740042648695,-500.0,0.00011926,2]
[353780547,1740042648705,-500.0,0.00011926,2]
[353780548,1740042648715,-250.77090238,0.00011926,2]
[353780549,1740042648726,-397.56633465,0.00011926,2]
[353780550,1740042648736,-419.18164517,0.00011926,2]
[353780551,1740042648746,-221.64797592,0.00011926,2]
[353780552,1740042648757,-633.88094147,0.00011926,2]
[353780553,1740042648767,-500.0,0.00011926,2]
[353780554,1740042648777,-500.0,0.00011926,2]
[353780555,1740042648788,-500.0,0.00011926,2]
[353780556,1740042648798,-500.0,0.00011926,2]
[353780557,1740042648808,-500.0,0.00011926,2]
[353780558,1740042648820,-500.0,0.00011926,2]
[353780559,1740042648830,-500.0,0.00011926,2]
[353780560,1740042648840,-214.35011815,0.00011926,2]
[353780561,1740042648850,-500.0,0.00011926,2]
[353780562,1740042648860,-500.0,0.00011926,2]
[353780563,1740042648871,-500.0,0.00011926,2]
[353780564,1740042648880,-500.0,0.00011926,2]
[353780565,1740042648891,-500.0,0.00011926,2]
[353780566,1740042648901,-500.0,0.00011926,2]
[353780567,1740042648911,-177.479705,0.00011926,2]
[353780568,1740042648921,-614.16911575,0.00011926,2]
[353780569,1740042648931,-500.0,0.00011926,2]
[353780570,1740042648941,-500.0,0.00011926,2]
[353780571,1740042648952,-498.80796809,0.00011926,2]
[353780572,1740042648963,-500.0,0.00011926,2]
[353780573,1740042648975,-500.0,0.00011926,2]
[353780574,1740042648986,-500.0,0.00011926,2]
[353780575,1740042648996,-574.87,0.00011926,2]
[353780576,1740042649007,-741.83,0.00011926,2]
[353780577,1740042649019,-30213.46711438,0.00011933,2]
[353780578,1740042649030,-153.640137,0.00011944,2]
[353780579,1740042649041,-476.67,0.00011964,2]
[353780580,1740042649053,-212.54058072,0.00011964,2]
[353780581,1740042649064,-550.51,0.00011964,2]
[353780582,1740042649074,-500.0,0.00011999,2]
[353780583,1740042649084,-5011.0,0.00012,2]
[353780584,1740042649095,-6628.0,0.00012,2]
[353780585,1740042649105,-57133.0,0.00012,2]
[353780586,1740042649115,-151.0,0.00012,2]
[353780587,1740042649126,-151.0,0.00012,2]
[353780588,1740042649136,-151.0,0.00012,2]
[353780589,1740042649146,-300.16450636,0.00012008,2]
[353780590,1740042649156,-500.0,0.00012008,2]
[353780591,1740042649168,-500.0,0.00012008,2]
[353780592,1740042649177,-500.0,0.00012008,2]
[353780593,1740042649187,-296.06055901,0.00012008,2]
[353780594,1740042649199,-500.0,0.00012008,2]
[353780595,1740042649210,-500.0,0.00012008,2]
[353780596,1740042649221,-500.0,0.00012008,2]
[353780597,1740042649230,-500.0,0.00012008,2]
[353780598,1740042649241,-500.0,0.00012008,2]
[353780599,1740042649251,-500.0,0.00012008,2]
[353780600,1740042649262,-500.0,0.00012008,2]
[353780601,1740042649273,-500.0,0.00012008,2]
[353780602,1740042649283,-500.0,0.00012008,2]
[353780603,1740042649293,-500.0,0.00012008,2]
[353780604,1740042649304,-500.0,0.00012008,2]
[353780605,1740042649314,-500.0,0.00012008,2]
[353780606,1740042649325,-498.05617588,0.00012008,2]
[353780607,1740042649334,-500.0,0.00012008,2]
[353780608,1740042649346,-500.0,0.00012008,2]
[353780609,1740042649356,-500.0,0.00012008,2]
[353780610,1740042649367,-500.0,0.00012008,2]
[353780611,1740042649378,-393.4495211,0.00012008,2]
[353780612,1740042649388,-500.0,0.00012008,2]
[353780613,1740042649398,-500.0,0.00012008,2]
[353780614,1740042649408,-500.0,0.00012008,2]
[353780615,1740042649419,-500.0,0.00012008,2]
[353780616,1740042649429,-500.0,0.00012008,2]
[353780617,1740042649438,-234.59435161,0.00012008,2]
[353780618,1740042649447,-500.0,0.00012008,2]
[353780619,1740042649457,-500.0,0.00012008,2]
[353780620,1740042649467,-500.0,0.00012008,2]
[353780621,1740042649477,-500.0,0.00012008,2]
[353780622,1740042649487,-500.0,0.00012008,2]
[353780623,1740042649497,-500.0,0.00012008,2]
[353780624,1740042649507,-500.0,0.00012008,2]
[353780625,1740042649517,-500.0,0.00012008,2]
[353780626,1740042649527,-500.0,0.00012008,2]
[353780627,1740042649537,-500.0,0.00012008,2]
[353780628,1740042649546,-500.0,0.00012008,2]
[353780629,1740042649556,-500.0,0.00012008,2]
[353780630,1740042649566,-500.0,0.00012008,2]
[353780631,1740042649577,-500.0,0.00012008,2]
[353780632,1740042649587,-500.0,0.00012008,2]
[353780633,1740042649597,-229.35246796,0.00012008,2]
[353780634,1740042649607,-500.0,0.00012008,2]
[353780635,1740042649617,-500.0,0.00012008,2]
[353780636,1740042649627,-451.14043769,0.00012008,2]
[353780637,1740042649637,-203.37737616,0.00012008,2]
[353780638,1740042649648,-500.0,0.00012008,2]
[353780639,1740042649659,-500.0,0.00012008,2]
[353780640,1740042649669,-500.0,0.00012008,2]
[353780641,1740042649679,-500.0,0.00012008,2]
[353780642,1740042649690,-565.70958664,0.00012008,2]
[353780643,1740042649701,-500.0,0.00012008,2]
[353780644,1740042649712,-500.0,0.00012008,2]
[353780645,1740042649722,-420.92074856,0.00012008,2]
[353780646,1740042649733,-248.50883236,0.00012008,2]
[353780647,1740042649743,-500.0,0.00012008,2]
[353780648,1740042649753,-500.0,0.00012008,2]
[353780649,1740042649763,-500.0,0.00012008,2]
[353780650,1740042649773,-500.0,0.00012008,2]
[353780651,1740042649783,-184.12,0.00012008,2]
[353780652,1740042649794,-500.0,0.00012008,2]
[353780653,1740042649804,-500.0,0.00012008,2]
[353780654,1740042649814,-500.0,0.00012008,2]
[353780655,1740042649823,-242.34181161,0.00012008,2]
[353780656,1740042649833,-500.0,0.00012008,2]
[353780657,1740042649843,-500.0,0.00012008,2]
[353780658,1740042649852,-500.0,0.00012008,2]
[353780659,1740042649862,-500.0,0.00012008,2]
[353780660,1740042649872,-500.0,0.00012008,2]
[353780661,1740042649881,-500.0,0.00012008,2]
[353780662,1740042649891,-574.87,0.00012008,2]
[353780663,1740042649900,-741.83,0.00012008,2]
[353780664,1740042649910,-30213.46711438,0.00012011,2]
[353780665,1740042649919,-157.77123,0.00012027,2]
[353780666,1740042649928,-200.0,0.00012037,2]
[353780667,1740042649939,-150.0,0.00012054,2]
[353780668,1740042649949,-1385.98,0.00012054,2]
[353780669,1740042649959,-150.0,0.00012055,2]
[353780670,1740042649969,-30213.46711438,0.00012089,2]
[353780671,1740042649983,-500.0,0.0001209,2]
[353780672,1740042649993,-500.0,0.0001209,2]
[353780673,1740042650003,-257.35093497,0.0001209,2]
[353780674,1740042650015,-500.0,0.0001209,2]
[353780675,1740042650025,-500.0,0.0001209,2]
[353780676,1740042650035,-408.07156605,0.0001209,2]
[353780677,1740042650045,-500.0,0.0001209,2]
[353780678,1740042650056,-500.0,0.0001209,2]
[353780679,1740042650067,-500.0,0.0001209,2]
[353780680,1740042650076,-172.92,0.0001209,2]
[353780681,1740042650086,-500.0,0.0001209,2]
[353780682,1740042650095,-500.0,0.0001209,2]
[353780683,1740042650105,-500.0,0.0001209,2]
[353780684,1740042650117,-500.0,0.0001209,2]
[353780685,1740042650127,-500.0,0.0001209,2]
[353780686,1740042650136,-500.0,0.0001209,2]
[353780687,1740042650147,-500.0,0.0001209,2]
[353780688,1740042650156,-500.0,0.0001209,2]
[353780689,1740042650166,-418.95000377,0.0001209,2]
[353780690,1740042650175,-500.0,0.0001209,2]
[353780691,1740042650186,-500.0,0.0001209,2]
[353780692,1740042650195,-500.0,0.0001209,2]
[353780693,1740042650206,-500.0,0.0001209,2]
[353780694,1740042650216,-500.0,0.0001209,2]
[353780695,1740042650226,-500.0,0.0001209,2]
[353780696,1740042650235,-500.0,0.0001209,2]
[353780697,1740042650245,-500.0,0.0001209,2]
[353780698,1740042650255,-500.0,0.0001209,2]
[353780699,1740042650264,-386.70395429,0.0001209,2]
[353780700,1740042650274,-500.0,0.0001209,2]
[353780701,1740042650284,-500.0,0.0001209,2]
[353780702,1740042650294,-500.0,0.0001209,2]
[353780703,1740042650306,-500.0,0.0001209,2]
[353780704,1740042650317,-500.0,0.0001209,2]
[353780705,1740042650327,-500.0,0.0001209,2]
[353780706,1740042650337,-500.0,0.0001209,2]
[353780707,1740042650347,-212.7070274,0.0001209,2]
[353780708,1740042650357,-346.01535116,0.0001209,2]
[353780709,1740042650367,-500.0,0.0001209,2]
[353780710,1740042650376,-408.89743192,0.0001209,2]
[353780711,1740042650386,-500.0,0.0001209,2]
[353780712,1740042650397,-500.0,0.0001209,2]
[353780713,1740042650407,-500.0,0.0001209,2]
[353780714,1740042650419,-370.49,0.0001209,2]
[353780715,1740042650430,-500.0,0.0001209,2]
[353780716,1740042650440,-500.0,0.0001209,2]
[353780717,1740042650450,-170.7831125,0.0001209,2]
[353780718,1740042650460,-627.66389751,0.0001209,2]
[353780719,1740042650470,-500.0,0.0001209,2]
[353780720,1740042650479,-500.0,0.0001209,2]
[353780721,1740042650490,-394.21,0.0001209,2]
[353780722,1740042650501,-284.59930211,0.0001209,2]
[353780723,1740042650511,-204.72644982,0.0001209,2]
[353780724,1740042650522,-500.0,0.0001209,2]
[353780725,1740042650684,-579.11266073,0.0001209,2]
[353780726,1740042650695,-500.0,0.0001209,2]
[353780727,1740042650705,-500.0,0.0001209,2]
[353780728,1740042650714,-374.02623105,0.0001209,2]
[353780729,1740042650724,-500.0,0.0001209,2]
[353780730,1740042650734,-500.0,0.0001209,2]
[353780731,1740042650743,-574.87,0.0001209,2]
[353780732,1740042650753,-741.83,0.0001209,2]
[353780733,1740042650762,-151.0,0.00012128,2]
[353780734,1740042650771,-151.0,0.00012128,2]
[353780735,1740042650780,-500.0,0.00012145,2]
[353780736,1740042650790,-30213.46711438,0.00012167,2]
[353780737,1740042650800,-500.0,0.00012172,2]
[353780738,1740042650809,-500.0,0.00012172,2]
[353780739,1740042650819,-558.48236375,0.00012172,2]
[353780740,1740042650828,-500.0,0.00012172,2]
[353780741,1740042650839,-500.0,0.00012172,2]
[353780742,1740042650849,-440.39146994,0.00012172,2]
[353780743,1740042650859,-500.0,0.00012172,2]
[353780744,1740042650870,-644.88581764,0.00012172,2]
[353780745,1740042650880,-500.0,0.00012172,2]
[353780746,1740042650889,-500.0,0.00012172,2]
[353780747,1740042650899,-500.0,0.00012172,2]
[353780748,1740042650909,-500.0,0.00012172,2]
[353780749,1740042650919,-500.0,0.00012172,2]
[353780750,1740042650928,-183.93846681,0.00012172,2]
[353780751,1740042650938,-500.0,0.00012172,2]
[353780752,1740042650947,-500.0,0.00012172,2]
[353780753,1740042650957,-423.39149992,0.00012172,2]
[353780754,1740042650966,-500.0,0.00012172,2]
[353780755,1740042650980,-554.73924634,0.00012172,2]
[353780756,1740042650991,-500.0,0.00012172,2]
[353780757,1740042651001,-500.0,0.00012172,2]
[353780758,1740042651011,-500.0,0.00012172,2]
[353780759,1740042651021,-500.0,0.00012172,2]
[353780760,1740042651031,-500.0,0.00012172,2]
[353780761,1740042651041,-500.0,0.00012172,2]
[353780762,1740042651052,-500.0,0.00012172,2]
[353780763,1740042651063,-161.80145459,0.00012172,2]
[353780764,1740042651073,-500.0,0.00012172,2]
[353780765,1740042651084,-500.0,0.00012172,2]
[353780766,1740042651094,-500.0,0.00012172,2]
[353780767,1740042651103,-500.0,0.00012172,2]
[353780768,1740042651114,-500.0,0.00012172,2]
[353780769,1740042651124,-500.0,0.00012172,2]
[353780770,1740042651133,-565.32387675,0.00012172,2]
[353780771,1740042651143,-500.0,0.00012172,2]
[353780772,1740042651153,-500.0,0.00012172,2]
[353780773,1740042651163,-500.0,0.00012172,2]
[353780774,1740042651172,-500.0,0.00012172,2]
[353780775,1740042651181,-500.0,0.00012172,2]
[353780776,1740042651191,-500.0,0.00012172,2]
[353780777,1740042651200,-500.0,0.00012172,2]
[353780778,1740042651210,-428.92535386,0.00012172,2]
[353780779,1740042651220,-500.0,0.00012172,2]
[353780780,1740042651229,-500.0,0.00012172,2]
[353780781,1740042651239,-574.87,0.00012172,2]
[353780782,1740042651249,-741.83,0.00012172,2]
[353780783,1740042651258,-377.52173656,0.00012195,2]
[353780784,1740042651268,-26222.52976714,0.000122,2]
[353780785,1740042651277,-296.93887102,0.0001221,2]
[353780786,1740042651286,-1000.0,0.00012223,2]
[353780787,1740042651296,-30213.46711438,0.00012244,2]
[353780788,1740042651306,-500.0,0.00012255,2]
[353780789,1740042651316,-193.42242899,0.00012255,2]
[353780790,1740042651325,-500.0,0.00012255,2]
[353780791,1740042651335,-500.0,0.00012255,2]
[353780792,1740042651344,-500.0,0.00012255,2]
[353780793,1740042651353,-500.0,0.00012255,2]
[353780794,1740042651362,-500.0,0.00012255,2]
[353780795,1740042651372,-500.0,0.00012255,2]
[353780796,1740042651381,-500.0,0.00012255,2]
[353780797,1740042651390,-500.0,0.00012255,2]
[353780798,1740042651400,-500.0,0.00012255,2]
[353780799,1740042651409,-536.16664538,0.00012255,2]
[353780800,1740042651420,-500.0,0.00012255,2]
[353780801,1740042651429,-500.0,0.00012255,2]
[353780802,1740042651439,-373.89635156,0.00012255,2]
[353780803,1740042651448,-500.0,0.00012255,2]
[353780804,1740042651457,-500.0,0.00012255,2]
[353780805,1740042651466,-500.0,0.00012255,2]
[353780806,1740042651475,-499.1,0.00012255,2]
[353780807,1740042651485,-500.0,0.00012255,2]
[353780808,1740042651495,-313.53212272,0.00012255,2]
[353780809,1740042651504,-500.0,0.00012255,2]
[353780810,1740042651515,-500.0,0.00012255,2]
[353780811,1740042651525,-500.0,0.00012255,2]
[353780812,1740042651537,-500.0,0.00012255,2]
[353780813,1740042651546,-491.52,0.00012255,2]
[353780814,1740042651556,-500.0,0.00012255,2]
[353780815,1740042651566,-500.0,0.00012255,2]
[353780816,1740042651576,-500.0,0.00012255,2]
[353780817,1740042651585,-543.20581876,0.00012255,2]
[353780818,1740042651595,-396.50845171,0.00012255,2]
[353780819,1740042651605,-500.0,0.00012255,2]
[353780820,1740042651615,-500.0,0.00012255,2]
[353780821,1740042651624,-500.0,0.00012255,2]
[353780822,1740042651634,-288.68894573,0.00012255,2]
[353780823,1740042651644,-574.87,0.00012255,2]
[353780824,1740042651653,-741.83,0.00012255,2]
[353780825,1740042651662,-4504.1553,0.000123,2]
[353780826,1740042651672,-151.0,0.000123,2]
[353780827,1740042651684,-152.98773856,0.00012321,2]
[353780828,1740042651695,-30213.46711438,0.00012322,2]
[353780829,1740042651706,-1385.98,0.00012328,2]
[353780830,1740042651716,-151.0,0.00012329,2]
[353780831,1740042651725,-162.117335,0.00012329,2]
[353780832,1740042651734,-151.0,0.00012329,2]
[353780833,1740042651743,-151.0,0.00012329,2]
[353780834,1740042651752,-151.0,0.00012329,2]
[353780835,1740042651762,-153.18008,0.00012329,2]
[353780836,1740042651771,-151.0,0.00012329,2]
[353780837,1740042651780,-151.0,0.00012329,2]
[353780838,1740042651789,-151.0,0.00012329,2]
[353780839,1740042651798,-151.0,0.00012329,2]
[353780840,1740042651807,-151.0,0.00012329,2]
[353780841,1740042651816,-151.0,0.00012329,2]
[353780842,1740042651826,-151.56941,0.00012329,2]
[353780843,1740042651836,-151.0,0.00012329,2]
[353780844,1740042651845,-151.0,0.00012329,2]
[353780845,1740042651855,-151.0,0.00012329,2]
[353780846,1740042651864,-153.770745,0.00012329,2]
[353780847,1740042651873,-372.254408,0.00012329,2]
[353780848,1740042651883,-372.254408,0.00012329,2]
[353780849,1740042651892,-372.254408,0.00012329,2]
[353780850,1740042651902,-372.254408,0.00012329,2]
[353780851,1740042651911,-372.254408,0.00012329,2]
[353780852,1740042651921,-372.254408,0.00012329,2]
[353780853,1740042651931,-372.254408,0.00012329,2]
[353780854,1740042651940,-372.254408,0.00012329,2]
[353780855,1740042651949,-500.0,0.00012337,2]
[353780856,1740042651958,-500.0,0.00012337,2]
[353780857,1740042651968,-500.0,0.00012337,2]
[353780858,1740042651980,-500.0,0.00012337,2]
[353780859,1740042651990,-500.0,0.00012337,2]
[353780860,1740042652000,-449.91506498,0.00012337,2]
[353780861,1740042652009,-500.0,0.00012337,2]
[353780862,1740042652020,-500.0,0.00012337,2]
[353780863,1740042652031,-500.0,0.00012337,2]
[353780864,1740042652041,-500.0,0.00012337,2]
[353780865,1740042652052,-500.0,0.00012337,2]
[353780866,1740042652061,-500.0,0.00012337,2]
[353780867,1740042652071,-500.0,0.00012337,2]
[353780868,1740042652082,-500.0,0.00012337,2]
[353780869,1740042652093,-500.0,0.00012337,2]
[353780870,1740042652103,-500.0,0.00012337,2]
[353780871,1740042652113,-500.0,0.00012337,2]
[353780872,1740042652122,-500.0,0.00012337,2]
[353780873,1740042652132,-234.56121504,0.00012337,2]
[353780874,1740042652142,-500.0,0.00012337,2]
[353780875,1740042652152,-150.06,0.00012337,2]
[353780876,1740042652162,-500.0,0.00012337,2]
[353780877,1740042652171,-553.70361087,0.00012337,2]
[353780878,1740042652181,-500.0,0.00012337,2]
[353780879,1740042652192,-620.93,0.00012337,2]
[353780880,1740042652202,-500.0,0.00012337,2]
[353780881,1740042652211,-574.87,0.00012337,2]
[353780882,1740042652220,-741.83,0.00012337,2]
[353780883,1740042652229,-20155.0,0.00012384,2]
[353780884,1740042652239,-151.0,0.00012384,2]
[353780885,1740042652248,-151.0,0.00012384,2]
[353780886,1740042652257,-172.124906,0.00012389,2]
[353780887,1740042652267,-164.81729776,0.0001239,2]
[353780888,1740042652276,-755.1944537,0.00012392,2]
[353780889,1740042652286,-467.5759442,0.00012392,2]
[353780890,1740042652295,-1060.0,0.00012398,2]
[353780891,1740042652304,-1000.0,0.00012399,2]
[353780892,1740042652313,-881.16,0.00012399,2]
[353780893,1740042652322,-500.0,0.00012399,2]
[353780894,1740042652331,-500.0,0.00012399,2]
[353780895,1740042652340,-500.0,0.00012399,2]
[353780896,1740042652350,-500.0,0.00012399,2]
[353780897,1740042652360,-500.0,0.00012399,2]
[353780898,1740042652370,-374.84518604,0.00012399,2]